{"text_format":"1","workbook":"xlsx","n_sheets":2,"sheets":["納入申告書（入力→印刷）","納入書（自動反映→印刷）"],"not_rendered":{"charts":0,"images":0,"macros":1,"external_links":0,"defined_names":2,"comments":0,"pivot_tables":0},"unopened":[],"bounds":{"document_bytes":16777216,"sheet_cells":100000,"rows_first":2000,"rows_last":500,"rows_between":2000,"halvings":0,"cell_chars":16384,"cell_head_chars":4096},"cells_cut":0,"cells_raw":0,"read":"whole","date_system":"1900"}

{"sheet":"納入申告書（入力→印刷）","index":0,"n_rows":36,"n_cols":24,"rows_kept":36,"cut":false,"hidden":false,"merged":[[1,8,1,10],[1,11,1,18],[2,0,2,18],[3,11,3,12],[6,8,6,18],[9,8,9,18],[10,8,10,18],[11,0,11,18],[12,3,12,5],[12,7,12,18],[16,11,16,12],[16,13,16,16],[13,3,13,5],[13,6,13,18],[14,2,14,7],[14,8,14,9],[14,10,14,12],[14,13,14,18],[21,2,21,7],[21,8,21,9],[21,10,21,12],[21,13,21,18],[18,2,18,7],[19,2,19,7],[28,13,28,18],[25,2,25,7],[26,2,26,7],[24,5,24,7],[24,11,24,12],[24,13,24,16],[22,2,24,4],[25,13,27,16],[25,17,27,17],[25,18,27,18],[22,5,22,7],[22,11,22,12],[22,13,22,16],[23,5,23,7],[23,11,23,12],[23,13,23,16],[29,2,31,4],[32,10,34,12],[31,5,31,7],[31,11,31,12],[31,13,31,16],[29,5,29,7],[29,11,29,12],[29,13,29,16],[30,5,30,7],[30,11,30,12],[30,13,30,16],[27,2,27,7],[28,2,28,7],[28,8,28,9],[28,10,28,12],[25,10,27,12],[7,6,8,7],[7,8,8,18],[12,0,13,2],[15,2,17,4],[18,10,20,12],[18,13,20,16],[18,17,20,17],[18,18,20,18],[20,2,20,7],[17,5,17,7],[17,11,17,12],[17,13,17,16],[15,5,15,7],[15,11,15,12],[15,13,15,16],[16,5,16,7],[35,0,35,18],[32,17,34,17],[32,18,34,18],[34,2,34,7],[32,13,34,16],[32,2,32,7],[33,2,33,7]]}
["第２号様式（第５条関係）"]
[null,null,null,null,null,null,null,null,"指定番号"]
["宿泊税納入申告書"]
[null,null,null,null,null,null,null,null,null,null,null,null,null,"年",null,"月",null,"日",null,null,"令和",8,"年度"]
["　占　冠　村　長　　様"]
[null,null,null,null,null,null,"（特別徴収義務者）",null,null,null,null,null,null,null,null,null,null,null,null,null,null,3,"月"]
[null,null,null,null,null,null,"住　　所（所在地）",null,null,null,null,null,null,null,null,null,null,null,null,null,null,4,"月"]
[null,null,null,null,null,null,"氏　　名（名　称）",null,null,null,null,null,null,null,null,null,null,null,null,null,null,5,"月"]
[null,null,null,null,null,null,null,null,null,null,null,null,null,null,null,null,null,null,null,null,"納期限",{"$f":"IF(V8=11,1,V8+1)","v":6},"月",{"$f":"IF(V9>12,\"エラー!\",\"\")","v":""}]
[null,null,null,null,null,null,"個人番号（法人番号）"]
[null,null,null,null,null,null,"電話番号"]
["　宿泊税の納入について、占冠村宿泊税条例第８条第１項の規定により申告します。"]
["宿泊施設",null,null,"所在地",null,null,"占冠村字"]
[null,null,null,"名　称"]
[null,null,"区　　分",null,null,null,null,null,"①宿泊数",null,"②税率(円)",null,null,"①×②税額"]
[null,null,"宿泊料金\n（1人1泊）",null,null,"20,000円未満",null,null,null,"泊",200,"円",null,{"$f":"I16*K16","v":0},null,null,null,"円"]
[null,null,null,null,null,"20,000円以上50,000円未満",null,null,null,"泊",400,"円",null,{"$f":"I17*K17","v":0},null,null,null,"円"]
[{"$f":"V4","v":8},"年",null,null,null,"50,000円以上",null,null,null,"泊",1000,"円",null,{"$f":"I18*K18","v":0},null,null,null,"円"]
[{"$f":"V6","v":3},"月","Ａ　課税対象",null,null,null,null,null,{"$f":"SUM(I16:I18)","v":0},"泊","納入すべき\n金　　　額",null,null,{"$f":"SUM(N16:Q18)","v":0},null,null,null,"円"]
[null,"宿泊分","Ｂ　課税対象外",null,null,null,null,null,null,"泊"]
[null,null,"Ｃ　総宿泊数（Ａ＋Ｂ）",null,null,null,null,null,{"$f":"I19+I20","v":0},"泊"]
[null,null,"区　　分",null,null,null,null,null,"①宿泊数",null,"②税率(円)",null,null,"①×②税額"]
[null,null,"宿泊料金\n（1人1泊）",null,null,"20,000円未満",null,null,null,"泊",200,"円",null,{"$f":"I23*K23","v":0},null,null,null,"円"]
[null,null,null,null,null,"20,000円以上50,000円未満",null,null,null,"泊",400,"円",null,{"$f":"I24*K24","v":0},null,null,null,"円"]
[{"$f":"V4","v":8},"年",null,null,null,"50,000円以上",null,null,null,"泊",1000,"円",null,{"$f":"I25*K25","v":0},null,null,null,"円"]
[{"$f":"V7","v":4},"月","Ａ　課税対象",null,null,null,null,null,{"$f":"SUM(I23:I25)","v":0},"泊","納入すべき\n金　　　額",null,null,{"$f":"SUM(N23:Q25)","v":0},null,null,null,"円"]
[null,"宿泊分","Ｂ　課税対象外",null,null,null,null,null,null,"泊"]
[null,null,"Ｃ　総宿泊数（Ａ＋Ｂ）",null,null,null,null,null,{"$f":"I26+I27","v":0},"泊"]
[null,null,"区　　分",null,null,null,null,null,"①宿泊数",null,"②税率(円)",null,null,"①×②税額"]
[null,null,"宿泊料金\n（1人1泊）",null,null,"20,000円未満",null,null,null,"泊",200,"円",null,{"$f":"I30*K30","v":0},null,null,null,"円"]
[null,null,null,null,null,"20,000円以上50,000円未満",null,null,null,"泊",400,"円",null,{"$f":"I31*K31","v":0},null,null,null,"円"]
[{"$f":"V4","v":8},"年",null,null,null,"50,000円以上",null,null,null,"泊",1000,"円",null,{"$f":"I32*K32","v":0},null,null,null,"円"]
[{"$f":"V8","v":5},"月","Ａ　課税対象",null,null,null,null,null,{"$f":"SUM(I30:I32)","v":0},"泊","納入すべき\n金　　　額",null,null,{"$f":"SUM(N30:Q32)","v":0},null,null,null,"円"]
[null,"宿泊分","Ｂ　課税対象外",null,null,null,null,null,null,"泊"]
[null,null,"Ｃ　総宿泊数（Ａ＋Ｂ）",null,null,null,null,null,{"$f":"I33+I34","v":0},"泊"]
["　※　この申告書は、条例第８条第１項に定める各期間内に提出してください。\n　※　この申請書を毎月提出する場合は、前月中の宿泊について記載し、月末までに提出してください。\n　※　②税率(円)には道宿泊税も含まれます。"]

{"sheet":"納入書（自動反映→印刷）","index":1,"n_rows":28,"n_cols":82,"rows_kept":28,"cut":false,"hidden":false,"merged":[[1,0,1,10],[1,28,1,38],[1,56,1,66],[2,0,2,10],[2,28,2,38],[2,56,2,66],[3,0,3,10],[3,28,3,38],[3,56,3,66],[5,0,5,14],[5,15,5,25],[5,28,5,42],[5,43,5,53],[5,56,5,70],[5,71,5,81],[6,0,6,14],[6,15,6,25],[6,28,6,42],[6,43,6,53],[6,56,6,70],[6,71,6,81],[7,0,7,3],[7,4,7,7],[7,8,7,15],[7,16,7,25],[7,28,7,31],[7,32,7,35],[7,36,7,43],[7,44,7,53],[7,56,7,59],[7,60,7,63],[7,64,7,71],[7,72,7,81],[8,4,8,5],[8,6,8,7],[8,32,8,33],[8,34,8,35],[8,60,8,61],[8,62,8,63],[8,72,9,81],[9,4,9,5],[9,6,9,7],[9,32,9,33],[9,34,9,35],[9,60,9,61],[9,62,9,63],[10,2,10,7],[10,8,10,23],[10,24,10,25],[10,30,10,35],[10,36,10,51],[10,52,10,53],[10,58,10,63],[12,80,12,81],[10,64,10,79],[10,80,10,81],[11,2,11,7],[11,8,11,23],[11,24,11,25],[11,30,11,35],[11,36,11,51],[11,52,11,53],[11,58,11,63],[11,64,11,79],[11,80,11,81],[20,0,20,11],[20,28,20,39],[22,0,22,11],[20,12,25,13],[20,40,25,41],[20,56,25,67],[20,68,25,69],[21,28,22,39],[13,2,13,7],[13,8,13,23],[13,24,13,25],[13,30,13,35],[13,36,13,51],[13,52,13,53],[13,58,13,63],[13,64,13,79],[23,0,23,11],[23,28,23,39],[24,0,24,11],[24,28,24,39],[16,34,17,53],[16,62,17,81],[18,6,19,25],[18,34,19,53],[27,0,27,25],[27,28,27,53],[27,56,27,81],[1,13,3,25],[1,41,3,53],[1,69,3,81],[8,0,9,3],[8,8,9,10],[8,11,9,12],[8,13,9,15],[8,16,9,25],[8,28,9,31],[8,36,9,38],[8,39,9,40],[8,41,9,43],[8,44,9,53],[8,56,9,59],[8,64,9,66],[8,67,9,68],[8,69,9,71],[10,0,13,1],[10,28,13,29],[10,56,13,57],[16,6,17,25],[13,80,13,81],[12,2,12,7],[12,8,12,23],[12,24,12,25],[12,30,12,35],[12,36,12,51],[12,52,12,53],[12,58,12,63],[12,64,12,79],[14,44,14,45],[14,46,14,47],[14,48,14,50],[14,51,14,52],[14,70,14,71],[14,72,14,73],[14,74,14,75],[18,62,19,81],[14,0,14,7],[14,28,14,35],[14,56,14,63],[14,12,14,13],[14,14,14,15],[14,16,14,17],[14,18,14,19],[14,20,14,22],[14,23,14,24],[14,68,14,69],[14,76,14,78],[14,79,14,80],[14,40,14,41],[14,42,14,43]]}
["第３号様式（第５条関係）"]
["北海道占冠村",null,null,null,null,null,null,null,null,null,null,null,null,"宿泊税納入書 公",null,null,null,null,null,null,null,null,null,null,null,null,null,null,"北海道占冠村",null,null,null,null,null,null,null,null,null,null,null,null,"宿泊税納入済通知書 公",null,null,null,null,null,null,null,null,null,null,null,null,null,null,"北海道占冠村",null,null,null,null,null,null,null,null,null,null,null,null,"宿泊税領収証書 公"]
["市区町村コード",null,null,null,null,null,null,null,null,null,null,null,null,null,null,null,null,null,null,null,null,null,null,null,null,null,null,null,"市区町村コード",null,null,null,null,null,null,null,null,null,null,null,null,null,null,null,null,null,null,null,null,null,null,null,null,null,null,null,"市区町村コード"]
["０１４６３０",null,null,null,null,null,null,null,null,null,null,null,null,null,null,null,null,null,null,null,null,null,null,null,null,null,null,null,"０１４６３０",null,null,null,null,null,null,null,null,null,null,null,null,null,null,null,null,null,null,null,null,null,null,null,null,null,null,null,"０１４６３０"]
[]
["口　座　番　号",null,null,null,null,null,null,null,null,null,null,null,null,null,null,"加　入　者　名",null,null,null,null,null,null,null,null,null,null,null,null,"口　座　番　号",null,null,null,null,null,null,null,null,null,null,null,null,null,null,"加　入　者　名",null,null,null,null,null,null,null,null,null,null,null,null,"口　座　番　号",null,null,null,null,null,null,null,null,null,null,null,null,null,null,"加　入　者　名"]
["02740-6-960312",null,null,null,null,null,null,null,null,null,null,null,null,null,null,"占冠村　会計管理者",null,null,null,null,null,null,null,null,null,null,null,null,"02740-6-960312",null,null,null,null,null,null,null,null,null,null,null,null,null,null,"占冠村　会計管理者",null,null,null,null,null,null,null,null,null,null,null,null,"02740-6-960312",null,null,null,null,null,null,null,null,null,null,null,null,null,null,"占冠村　会計管理者"]
["年度",null,null,null,"申告年月",null,null,null,"申告区分",null,null,null,null,null,null,null,"指定番号",null,null,null,null,null,null,null,null,null,null,null,"年度",null,null,null,"申告年月",null,null,null,"申告区分",null,null,null,null,null,null,null,"指定番号",null,null,null,null,null,null,null,null,null,null,null,"年度",null,null,null,"申告年月",null,null,null,"申告区分",null,null,null,null,null,null,null,"指定番号"]
[{"$f":"'納入申告書（入力→印刷）'!V4","v":8},null,null,null,{"$f":"'納入申告書（入力→印刷）'!V4","v":8},null,"年",null,null,null,null,"申告",null,null,null,null,{"$f":"'納入申告書（入力→印刷）'!$L$2","v":0},null,null,null,null,null,null,null,null,null,null,null,{"$f":"$A$9","v":8},null,null,null,{"$f":"$E$9","v":8},null,"年",null,null,null,null,{"$f":"L9","v":"申告"},null,null,null,null,{"$f":"$Q$9","v":0},null,null,null,null,null,null,null,null,null,null,null,{"$f":"$A$9","v":8},null,null,null,{"$f":"$E$9","v":8},null,"年",null,null,null,null,{"$f":"AN9","v":"申告"},null,null,null,null,{"$f":"$Q$9","v":0}]
[null,null,null,null,{"$f":"'納入申告書（入力→印刷）'!V8","v":5},null,"月分",null,null,null,null,null,null,null,null,null,null,null,null,null,null,null,null,null,null,null,null,null,null,null,null,null,{"$f":"$E$10","v":5},null,"月分",null,null,null,null,null,null,null,null,null,null,null,null,null,null,null,null,null,null,null,null,null,null,null,null,null,{"$f":"$E$10","v":5},null,"月分"]
["納入金額",null,"税　額",null,null,null,null,null,{"$f":"'納入申告書（入力→印刷）'!N19+'納入申告書（入力→印刷）'!N26+'納入申告書（入力→印刷）'!N33","v":0},null,null,null,null,null,null,null,null,null,null,null,null,null,null,null,"円",null,null,null,"納入金額",null,"税　額",null,null,null,null,null,{"$f":"$I$11","v":0},null,null,null,null,null,null,null,null,null,null,null,null,null,null,null,"円",null,null,null,"納入金額",null,"税　額",null,null,null,null,null,{"$f":"$I$11","v":0},null,null,null,null,null,null,null,null,null,null,null,null,null,null,null,"円"]
[null,null,"延滞金",null,null,null,null,null,null,null,null,null,null,null,null,null,null,null,null,null,null,null,null,null,"円",null,null,null,null,null,"延滞金",null,null,null,null,null,{"$f":"$I$12","v":0},null,null,null,null,null,null,null,null,null,null,null,null,null,null,null,"円",null,null,null,null,null,"延滞金",null,null,null,null,null,{"$f":"$I$12","v":0},null,null,null,null,null,null,null,null,null,null,null,null,null,null,null,"円"]
[null,null,"加算金",null,null,null,null,null,null,null,null,null,null,null,null,null,null,null,null,null,null,null,null,null,"円",null,null,null,null,null,"加算金",null,null,null,null,null,{"$f":"$I$13","v":0},null,null,null,null,null,null,null,null,null,null,null,null,null,null,null,"円",null,null,null,null,null,"加算金",null,null,null,null,null,{"$f":"$I$13","v":0},null,null,null,null,null,null,null,null,null,null,null,null,null,null,null,"円"]
[null,null,"合計額",null,null,null,null,null,{"$f":"SUM(I11:X13)","v":0},null,null,null,null,null,null,null,null,null,null,null,null,null,null,null,"円",null,null,null,null,null,"合計額",null,null,null,null,null,{"$f":"$I$14","v":0},null,null,null,null,null,null,null,null,null,null,null,null,null,null,null,"円",null,null,null,null,null,"合計額",null,null,null,null,null,{"$f":"$I$14","v":0},null,null,null,null,null,null,null,null,null,null,null,null,null,null,null,"円"]
["納期限",null,null,null,null,null,null,null,null,"令和",null,null,{"$f":"IF(Q15=3,'納入申告書（入力→印刷）'!V4+1,'納入申告書（入力→印刷）'!V4)","v":8},null,"年",null,{"$f":"'納入申告書（入力→印刷）'!V9","v":6},null,"月",null,{"$f":"IF(Q15=3,31,IF(Q15=1,6,30))","v":30},null,null,"日",null,null,null,null,"納期限",null,null,null,null,null,null,null,"年　　月　　日","令和",null,null,{"$f":"$M$15","v":8},null,"年",null,{"$f":"$Q$15","v":6},null,"月",null,{"$f":"$U$15","v":30},null,null,"日",null,null,null,null,"納期限",null,null,null,null,null,null,null,"年　　月　　日","令和",null,null,{"$f":"$M$15","v":8},null,"年",null,{"$f":"$Q$15","v":6},null,"月",null,{"$f":"$U$15","v":30},null,null,"日"]
["特別徴収義務者",null,null,null,null,null,null,null,null,null,null,null,null,null,null,null,null,null,null,null,null,null,null,null,null,null,null,null,"特別徴収義務者",null,null,null,null,null,null,null,null,null,null,null,null,null,null,null,null,null,null,null,null,null,null,null,null,null,null,null,"特別徴収義務者"]
["住所",null,null,null,null,null,{"$f":"'納入申告書（入力→印刷）'!$I$7","v":0},null,null,null,null,null,null,null,null,null,null,null,null,null,null,null,null,null,null,null,null,null,"住所",null,null,null,null,null,{"$f":"'納入申告書（入力→印刷）'!$I$7","v":0},null,null,null,null,null,null,null,null,null,null,null,null,null,null,null,null,null,null,null,null,null,"住所",null,null,null,null,null,{"$f":"'納入申告書（入力→印刷）'!$I$7","v":0}]
["（所在地）",null,null,null,null,null,null,null,null,null,null,null,null,null,null,null,null,null,null,null,null,null,null,null,null,null,null,null,"（所在地）",null,null,null,null,null,null,null,null,null,null,null,null,null,null,null,null,null,null,null,null,null,null,null,null,null,null,null,"（所在地）"]
["氏名",null,null,null,null,null,{"$f":"'納入申告書（入力→印刷）'!$I$8","v":0},null,null,null,null,null,null,null,null,null,null,null,null,null,null,null,null,null,null,null,null,null,"氏名",null,null,null,null,null,{"$f":"'納入申告書（入力→印刷）'!$I$8","v":0},null,null,null,null,null,null,null,null,null,null,null,null,null,null,null,null,null,null,null,null,null,"氏名",null,null,null,null,null,{"$f":"'納入申告書（入力→印刷）'!$I$8","v":0}]
["（名称）",null,null,null,null,null,null,null,null,null,null,null,null,null,null,null,null,null,null,null,null,null,null,null,null,null,null,null,"（名称）",null,null,null,null,null,null,null,null,null,null,null,null,null,null,null,null,null,null,null,null,null,null,null,null,null,null,null,"（名称）"]
["上記のとおり納入します。",null,null,null,null,null,null,null,null,null,null,null,"領収日付印",null,null,null,null,null,null,null,null,null,null,null,null,null,null,null,"指定金融機関名",null,null,null,null,null,null,null,null,null,null,null,"領収日付印",null,null,null,null,null,null,null,null,null,null,null,null,null,null,null,"上記のとおり領収しました。",null,null,null,null,null,null,null,null,null,null,null,"領収日付印"]
["（納入場所）",null,null,null,null,null,null,null,null,null,null,null,null,null,null,null,null,null,null,null,null,null,null,null,null,null,null,null,"旭川信用金庫占冠出張所"]
["旭川信用金庫占冠出張所"]
["ふらの農業協同組合",null,null,null,null,null,null,null,null,null,null,null,null,null,null,null,null,null,null,null,null,null,null,null,null,null,null,null,"取りまとめ店"]
["北海道内の郵便局又はゆうちょ銀行",null,null,null,null,null,null,null,null,null,null,null,null,null,null,null,null,null,null,null,null,null,null,null,null,null,null,null,"〒047-8794"]
["占冠村役場",null,null,null,null,null,null,null,null,null,null,null,null,null,null,null,null,null,null,null,null,null,null,null,null,null,null,null,"小樽貯金事務センター"]
[null,null,null,null,null,null,null,null,null,null,null,null,null,null,null,null,null,null,null,null,null,null,null,null,null,"（金融機関又はゆうちょ銀行等保管）",null,null,null,null,null,null,null,null,null,null,null,null,null,null,null,null,null,null,null,null,null,null,null,null,null,null,null,"（占冠村保管）",null,null,null,null,null,null,null,null,null,null,null,null,null,null,null,null,null,null,null,null,null,null,null,null,null,null,null,"（納入者保管）"]
["この納入書は3枚一組となっておりますので、切り離さずに提出してください。",null,null,null,null,null,null,null,null,null,null,null,null,null,null,null,null,null,null,null,null,null,null,null,null,null,null,null,"上記のとおり通知します。（受付店→占冠村会計管理者）",null,null,null,null,null,null,null,null,null,null,null,null,null,null,null,null,null,null,null,null,null,null,null,null,null,null,null,"この領収書は、５年間保存してください。"]